fUSD/lending_fUSD_20250906
["ID","MTS","AMOUNT","RATE_DAILY","PERIOD"]
[383820535,1757131843012,-200.0,0.00069988,120]
[383820537,1757131843021,-244.07718,0.00069988,120]
[383820539,1757131843030,-151.0,0.00069988,120]
[383820541,1757131843040,-158.182049,0.00069988,120]
[383820543,1757131843051,-42494.5106793,0.00069988,6]
[383820545,1757131843060,-469.424798,0.00069988,120]
[383820547,1757131843070,-469.424798,0.00069988,120]
[383820549,1757131843078,-469.424798,0.00069988,120]
[383820551,1757131843087,-469.424798,0.00069988,120]
[383820553,1757131843097,-469.424798,0.00069988,120]
[383820555,1757131843106,-469.424798,0.00069988,120]
[383820557,1757131843115,-469.424798,0.00069988,120]
[383820559,1757131843124,-469.424798,0.00069988,120]
[383820561,1757131843134,-169.248279,0.00069988,120]
[383820563,1757131843143,-169.248279,0.00069988,120]
[383820565,1757131843152,-169.248279,0.00069988,120]
[383820567,1757131843161,-169.248279,0.00069988,120]
[383820569,1757131843170,-169.248279,0.00069988,120]
[383820571,1757131843180,-169.248279,0.00069988,120]
[383820573,1757131843189,-169.248279,0.00069988,120]
[383820575,1757131843199,-169.248279,0.00069988,120]
[383820577,1757131843208,-1519.3961874,0.00069988,6]
[383820579,1757131843217,-151.692972,0.00069988,2]
[383820581,1757131843227,-601.76855,0.00069988,120]
[383820583,1757131843236,-601.76855,0.00069988,120]
[383820585,1757131843246,-601.76855,0.00069988,120]
[383820587,1757131843255,-601.768551,0.00069988,120]
[383820589,1757131843265,-159.420855,0.00069988,120]
[383820591,1757131843275,-151.0,0.00069988,120]
[383820593,1757131843284,-448.448159,0.00069988,120]
[383820595,1757131843293,-448.448159,0.00069988,120]
[383820597,1757131843303,-448.448159,0.00069988,120]
[383820599,1757131843312,-448.448162,0.00069988,120]
[383820601,1757131843321,-4758.255128,0.00069988,30]
[383820603,1757131843330,-151.0,0.00069988,60]
[383820605,1757131843340,-4758.255128,0.00069988,30]
[383820607,1757131843349,-4758.255128,0.00069988,30]
[383820609,1757131843358,-4758.255124,0.00069988,30]
[383820611,1757131843367,-445.563269,0.00069988,120]
[383820613,1757131843377,-445.563269,0.00069988,120]
[383820615,1757131843386,-445.563269,0.00069988,120]
[383820617,1757131843395,-445.563266,0.00069988,120]
[383820619,1757131843405,-151.0,0.00069988,120]
[383820621,1757131843415,-151.0,0.00069988,120]
[383820623,1757131843424,-151.0,0.00069988,120]
[383820625,1757131843434,-192.498229,0.00069988,120]
[383820627,1757131843444,-192.498229,0.00069988,120]
[383820629,1757131843454,-192.498229,0.00069988,120]
[383820631,1757131843463,-192.498236,0.00069988,120]
[383820633,1757131843472,-151.0,0.00069988,120]
[383820635,1757131843481,-151.0,0.00069988,120]
[383820637,1757131843491,-151.0,0.00069988,120]
[383820639,1757131843501,-151.0,0.00069988,30]
[383820641,1757131843510,-7493.85826776,0.0006999,120]
[383820643,1757131843519,-153.94285468,0.0006999,30]
[383820645,1757131843528,-237.02311149,0.0006999,30]
[383820647,1757131843537,-152.0,0.0006999,30]
[383820649,1757131843547,-152.0,0.0006999,30]
[383820651,1757131843556,-371.17605533,0.0006999,7]
[383820653,1757131843569,-166.0,0.00069995,30]
[383820655,1757131843578,-166.0,0.00069995,30]
[383820657,1757131843588,-152.0,0.00069995,30]
[383820659,1757131843598,-152.0,0.00069995,30]
[383820661,1757131843611,-152.0,0.00069995,30]
[383820664,1757131843621,-1224.0,0.00069995,30]
[383820666,1757131843630,-1224.0,0.00069995,30]
[383820668,1757131843640,-1224.0,0.00069995,30]
[383820670,1757131843649,-1224.0,0.00069995,30]
[383820673,1757131843659,-1224.0,0.00069995,30]
[383820676,1757131843669,-1224.0,0.00069995,30]
[383820678,1757131843678,-300.0,0.00069997,60]
[383820679,1757131843688,-364.501581,0.00069997,120]
[383820682,1757131843698,-400.0,0.00069997,120]
[383820684,1757131843708,-902.15,0.00069997,120]
[383820686,1757131843719,-400.0,0.00069998,120]
[383820688,1757131843729,-400.0,0.00069998,120]
[383820690,1757131843739,-213.89308054,0.00069998,120]
[383820692,1757131843751,-300.0,0.00069998,60]
[383820694,1757131843762,-400.0,0.00069998,120]
[383820695,1757131843771,-400.0,0.00069998,120]
[383820698,1757131843781,-749.63,0.00069998,120]
[383820700,1757131843790,-203.81733743,0.00069998,120]
[383820702,1757131843800,-202.55734374,0.00069998,120]
[383820704,1757131843810,-151.0,0.00069998,120]
[383820706,1757131843820,-160.72265241,0.00069998,120]
[383820708,1757131843829,-202.46647444,0.00069998,120]
[383820710,1757131843839,-628.52,0.00069998,120]
[383820712,1757131843848,-300.0,0.00069998,60]
[383820714,1757131843858,-3341.04,0.00069998,120]
[383820716,1757131843867,-211.48664965,0.00069998,120]
[383820718,1757131843876,-600.0,0.00069998,120]
[383820720,1757131843885,-201.60268081,0.00069998,120]
[383820722,1757131843895,-200.0,0.00069998,120]
[383820724,1757131843905,-600.0,0.00069998,120]
[383820726,1757131843914,-207.4,0.00069998,120]
[383820727,1757131843924,-600.0,0.00069998,120]
[383820729,1757131843934,-215.0738,0.00069998,120]
[383820731,1757131843943,-600.0,0.00069998,120]
[383820733,1757131843953,-223.0315306,0.00069998,120]
[383820736,1757131843963,-600.0,0.00069998,120]
[383820738,1757131843972,-151.0,0.00069998,120]
[383820739,1757131843982,-231.28369723,0.00069998,120]
[383820742,1757131843991,-600.0,0.00069998,120]
[383820744,1757131844001,-520.0,0.00069998,120]
[383820746,1757131844011,-250.0,0.00069998,120]
[383820748,1757131844021,-151.0,0.00069998,120]
[383820750,1757131844031,-600.0,0.00069998,120]
[383820752,1757131844042,-549.79551537,0.00069998,120]
[383820754,1757131844052,-239.84119403,0.00069998,120]
[383820756,1757131844061,-151.8384098,0.00069998,120]
[383820758,1757131844071,-500.0,0.00069998,120]
[383820760,1757131844081,-600.0,0.00069998,120]
[383820762,1757131844090,-500.0,0.00069998,120]
[383820764,1757131844100,-248.71531821,0.00069998,120]
[383820766,1757131844110,-500.0,0.00069998,120]
[383820768,1757131844119,-600.0,0.00069998,120]
[383820770,1757131844129,-257.91778498,0.00069998,120]
[383820772,1757131844139,-500.0,0.00069998,120]
[383820774,1757131844149,-267.46074303,0.00069998,120]
[383820776,1757131844159,-500.0,0.00069998,120]
[383820778,1757131844168,-277.35679052,0.00069998,120]
[383820780,1757131844177,-500.0,0.00069998,120]
[383820782,1757131844186,-175.57869948,0.00069998,120]
[383820784,1757131844195,-6877.19,0.00069998,120]
[383820786,1757131844205,-287.61899177,0.00069998,120]
[383820788,1757131844214,-151.0,0.00069998,120]
[383820790,1757131844223,-500.0,0.00069998,120]
[383820792,1757131844233,-298.26089446,0.00069998,120]
[383820794,1757131844243,-500.0,0.00069998,120]
[383820796,1757131844252,-309.29654756,0.00069998,120]
[383820798,1757131844262,-500.0,0.00069998,120]
[383820800,1757131844271,-160.0,0.00069998,120]
[383820802,1757131844281,-320.74051982,0.00069998,120]
[383820804,1757131844291,-500.0,0.00069998,120]
[383820806,1757131844300,-160.0,0.00069998,120]
[383820808,1757131844310,-500.0,0.00069998,120]
[383820810,1757131844319,-332.60791905,0.00069998,120]
[383820812,1757131844329,-500.0,0.00069998,120]
[383820814,1757131844338,-250.0,0.00069998,120]
[383820816,1757131844348,-344.91441206,0.00069998,120]
[383820818,1757131844357,-544.24277941,0.00069998,120]
[383820820,1757131844367,-500.0,0.00069998,120]
[383820823,1757131844377,-250.0,0.00069998,120]
[383820825,1757131844386,-357.6762453,0.00069998,120]
[383820827,1757131844395,-500.0,0.00069998,120]
[383820828,1757131844405,-250.0,0.00069998,120]
[383820830,1757131844414,-370.91026638,0.00069998,120]
[383820832,1757131844423,-500.0,0.00069998,120]
[383820834,1757131844432,-151.0,0.00069998,120]
[383820837,1757131844442,-384.63394623,0.00069998,120]
[383820839,1757131844451,-500.0,0.00069998,120]
[383820841,1757131844461,-250.0,0.00069998,120]
[383820843,1757131844471,-500.0,0.00069998,120]
[383820845,1757131844479,-151.0,0.00069998,120]
[383820847,1757131844489,-500.0,0.00069998,120]
[383820849,1757131844498,-380.30727402,0.00069998,120]
[383820851,1757131844508,-398.86540225,0.00069998,120]
[383820853,1757131844517,-160.0,0.00069998,120]
[383820855,1757131844526,-151.0,0.00069998,120]
[383820857,1757131844536,-564.30141647,0.00069998,120]
[383820859,1757131844545,-500.0,0.00069998,120]
[383820861,1757131844554,-160.0,0.00069998,120]
[383820863,1757131844566,-151.0,0.00069998,120]
[383820865,1757131844575,-500.0,0.00069998,120]
[383820866,1757131844585,-500.0,0.00069998,120]
[383820869,1757131844594,-160.0,0.00069998,120]
[383820871,1757131844604,-151.0,0.00069998,120]
[383820872,1757131844614,-500.0,0.00069998,120]
[383820874,1757131844623,-500.0,0.00069998,120]
[383820877,1757131844633,-151.0,0.00069998,120]
[383820879,1757131844643,-522.63265061,0.00069998,120]
[383820881,1757131844653,-151.0,0.00069998,120]
[383820883,1757131844662,-151.0,0.00069998,120]
[383820885,1757131844672,-151.0,0.00069998,120]
[383820887,1757131844681,-250.0,0.00069998,120]
[383820889,1757131844691,-151.0,0.00069998,120]
[383820890,1757131844700,-265.841198,0.00069998,120]
[383820891,1757131844709,-151.0,0.00069998,120]
[383820892,1757131844719,-666.0,0.00069999,120]
[383820893,1757131844728,-666.0,0.00069999,120]
[383820894,1757131844737,-300.0,0.00069999,60]
[383820895,1757131844746,-437.36940834,0.00069999,120]
[383820896,1757131844755,-430.52001315,0.00069999,120]
[383820897,1757131844764,-239.14054552,0.00069999,31]
[383820898,1757131844774,-609.56086263,0.00069999,120]
[383820899,1757131844783,-500.0,0.00069999,31]
[383820900,1757131844792,-500.0,0.00069999,31]
[383820901,1757131844801,-500.0,0.00069999,31]
[383820903,1757131844811,-500.0,0.00069999,31]
[383820905,1757131844820,-200.0,0.00069999,30]
[383820907,1757131844829,-151.0,0.00069999,120]
[383820909,1757131844838,-151.0,0.00069999,120]
[383820911,1757131844848,-151.0,0.00069999,120]
[383820913,1757131844857,-151.0,0.00069999,120]
[383820915,1757131844867,-151.0,0.00069999,120]
[383820917,1757131844877,-151.0,0.00069999,120]
[383820919,1757131844887,-151.0,0.00069999,120]
[383820921,1757131844896,-400.0,0.00069999,120]
[383820923,1757131844906,-400.0,0.00069999,120]
[383820925,1757131844915,-400.0,0.00069999,120]
[383820927,1757131844924,-479.32448218,0.00069999,120]
[383820929,1757131844934,-151.0,0.00069999,120]
[383820931,1757131844943,-151.0,0.00069999,120]
[383820933,1757131844952,-151.0,0.00069999,120]
[383820935,1757131844962,-151.0,0.00069999,120]
[383820937,1757131844972,-154.0,0.00069999,30]
[383820939,1757131844981,-154.0,0.00069999,30]
[383820941,1757131844991,-154.0,0.00069999,30]
[383820947,1757131845030,-154.0,0.00069999,30]
[383820949,1757131845042,-656.01675335,0.00069999,120]
[383820951,1757131845052,-1331.14773832,0.00069999,120]
[383820953,1757131845060,-469.424798,0.00069999,120]
[383820955,1757131845069,-469.424798,0.00069999,120]
[383820956,1757131845078,-469.424798,0.00069999,120]
[383820958,1757131845087,-469.424806,0.00069999,120]
[383820960,1757131845097,-169.248279,0.00069999,120]
[383820963,1757131845106,-169.248279,0.00069999,120]
[383820964,1757131845115,-169.248279,0.00069999,120]
[383820966,1757131845125,-169.248282,0.00069999,120]
[383820968,1757131845135,-151.0,0.00069999,120]
[383820970,1757131845144,-400.0,0.00069999,120]
[383820972,1757131845154,-400.0,0.00069999,120]
[383820974,1757131845163,-400.0,0.00069999,120]
[383820977,1757131845174,-283.43713283,0.00069999,120]
[383820979,1757131845183,-1000.0,0.00069999,120]
[383820981,1757131845192,-307.65206568,0.00069999,120]
[383820983,1757131845201,-400.0,0.00069999,120]
[383820985,1757131845210,-367.147982,0.00069999,120]
[383820986,1757131845219,-749.63,0.00069999,120]
[383820988,1757131845228,-749.63,0.00069999,120]
[383820990,1757131845237,-749.63,0.00069999,120]
[383820992,1757131845246,-749.63,0.00069999,120]
[383820994,1757131845255,-749.63,0.00069999,120]
[383820996,1757131845264,-749.63,0.00069999,120]
[383820998,1757131845273,-749.63,0.00069999,120]
[383821000,1757131845283,-749.63,0.00069999,120]
[383821002,1757131845291,-749.77949978,0.00069999,120]
[383821004,1757131845300,-1444.72785,0.00069999,120]
[383821006,1757131845307,-628.52,0.00069999,120]
[383821008,1757131845316,-628.52,0.00069999,120]
[383821010,1757131845324,-628.52,0.00069999,120]
[383821012,1757131845333,-628.52,0.00069999,120]
[383821014,1757131845341,-628.52,0.00069999,120]
[383821016,1757131845350,-628.52,0.00069999,120]
[383821018,1757131845359,-628.52,0.00069999,120]
[383821020,1757131845368,-628.57343446,0.00069999,120]
[383821022,1757131845377,-3341.04,0.00069999,120]
[383821024,1757131845386,-3341.04,0.00069999,120]
[383821026,1757131845394,-3341.04,0.00069999,120]
[383821027,1757131845403,-3341.04,0.00069999,120]
[383821029,1757131845412,-3341.04,0.00069999,120]
[383821031,1757131845421,-3341.04,0.00069999,120]
[383821033,1757131845430,-3341.04,0.00069999,120]
[383821035,1757131845439,-3341.18486499,0.00069999,120]
[383821037,1757131845448,-400.0,0.00069999,120]
[383821039,1757131845458,-289.37734392,0.00069999,120]
[383821041,1757131845468,-902.15,0.00069999,120]
[383821043,1757131845477,-902.15,0.00069999,120]
[383821045,1757131845485,-902.15,0.00069999,120]
[383821047,1757131845494,-902.15,0.00069999,120]
[383821049,1757131845504,-902.15,0.00069999,120]
[383821051,1757131845513,-902.15,0.00069999,120]
[383821053,1757131845522,-902.15,0.00069999,120]
[383821055,1757131845531,-902.24877932,0.00069999,120]
[383821057,1757131845540,-6877.19,0.00069999,120]
[383821059,1757131845550,-6877.19,0.00069999,120]
[383821061,1757131845559,-6877.19,0.00069999,120]
[383821063,1757131845571,-6877.19,0.00069999,120]
[383821065,1757131845581,-6877.19,0.00069999,120]
[383821067,1757131845590,-6877.19,0.00069999,120]
[383821069,1757131845599,-6877.19,0.00069999,120]
[383821071,1757131845611,-6877.28676165,0.00069999,120]
[383821073,1757131845620,-150.0,0.00069999,120]
[383821075,1757131845629,-150.87805407,0.00069999,120]
[383821077,1757131845640,-254.17442531,0.0007,30]
[383821079,1757131845650,-816620.17324121,0.0007,15]
[383821087,1757131845713,-270868.90924332,0.0007,15]
[383821093,1757131845759,-160.0,0.00068,120]
[383821095,1757131845768,-160.0,0.00068,120]
[383821097,1757131845777,-160.0,0.00068,120]
[383821099,1757131845786,-160.0,0.00068,120]
[383821103,1757131845796,-160.0,0.00068,120]
[383821106,1757131845805,-923.3,0.000699,15]
[383821109,1757131845816,-11068.62491303,0.000699,15]
[383821111,1757131845825,-4473.49982358,0.0007,15]
[383821128,1757131845989,-3300.24946436,0.0007,15]
[383821143,1757131846141,-35.39497421,0.00061061,120]
[383821146,1757131846160,-117.60502579,0.00061061,120]
[383821148,1757131846170,-160.0,0.00068,120]
[383821150,1757131846179,-160.0,0.00068,120]
[383821152,1757131846189,-160.0,0.00068,120]
[383821154,1757131846199,-160.0,0.00068,120]
[383821156,1757131846208,-160.0,0.00068,120]
[383821157,1757131846218,-160.0,0.00068,120]
[383821159,1757131846228,-160.0,0.00068,120]
[383821161,1757131846237,-160.0,0.00068,120]
[383821163,1757131846246,-160.0,0.00068,120]
[383821165,1757131846256,-160.0,0.00068,120]
[383821167,1757131846265,-160.0,0.00068,120]
[383821169,1757131846275,-3743.97919487,0.0007,15]
[383821175,1757131846324,-160.0,0.00068,120]
[383821177,1757131846334,-160.0,0.00068,120]
[383821179,1757131846343,-19.07720847,0.00068,120]
[383821695,1757131945225,500.0,0.00030781,7]
[383821696,1757131945657,500.0,0.00037288,7]
[383821697,1757131947416,160.20225,0.00040568,2]
[383821698,1757132402651,-175.16,0.00032606,2]
[383821699,1757132402676,-10.21494406,0.00033797,7]
[383821700,1757132405980,-400.0,0.00033797,7]
[383821701,1757132409333,-89.78505594,0.00033797,7]
[383821702,1757132409355,-61.62622232,0.00034832,2]
[383821703,1757132412736,-188.37377768,0.00034832,2]
[383821704,1757132412764,-13.90622232,0.00035866,2]
[383821705,1757132414385,-236.09377768,0.00035866,2]
[383821706,1757132414412,-232.69450315,0.00036161,7]
[383821707,1757132416440,-327.80295241,0.00036161,7]
[383821708,1757132416465,-72.19704759,0.00037177,2]
[383821709,1757132420394,-177.80295241,0.00037177,2]
[383821710,1757132420416,-5.33074589,0.000379,2]
[383821711,1757132422135,-250.0,0.000379,2]
[383821712,1757132424247,-38.37787658,0.000379,2]
[383821713,1757132424270,-161.0,0.00038,120]
[383821714,1757132424293,-273.69928468,0.00040464,2]
[383821715,1757132427155,-20.00933778,0.00040464,2]
[383821716,1757132427178,-325.4914362,0.00040547,14]
[383821717,1757132430449,-213.254,0.00040547,14]
[383821718,1757132593146,-267.86437912,0.00031491,7]
[383821719,1757132594720,-232.13562088,0.00031491,7]
[383821720,1757132594742,-2.94342973,0.00034552,7]
[383821721,1757132596762,-213.254,0.00034552,7]
[383821722,1757132599380,-283.80257027,0.00034552,7]
[383821723,1757132599404,-4.86466643,0.0003486,7]
[383821724,1757132603338,-246.6180971,0.0003486,7]
[383821725,1757132605465,-248.51723647,0.0003486,7]
[383821726,1757132605488,-1.48276353,0.00035005,7]
[383821727,1757132607133,-173.28339991,0.00035005,7]
[383821728,1757132609855,-325.23383656,0.00035005,7]
[383821729,1757132609879,-72.97625748,0.00039709,7]
[383821730,1757132611344,-202.19861576,0.00039709,7]
[383821731,1757132708755,50000.0,0.0002,2]
[383821732,1757132708821,50000.0,0.0002,2]
[383821733,1757132708860,50000.0,0.0002,2]
[383821734,1757132708896,50000.0,0.0002,2]
[383821735,1757132708923,20877.05560222,0.0002,2]
[383821736,1757132708949,50000.0,0.0002,2]
[383821737,1757132708979,50000.0,0.0002,2]
[383821738,1757132709006,50000.0,0.0002,2]
[383821739,1757132709032,50000.0,0.0002,2]
[383821740,1757132709058,100000.0,0.0002,2]
[383821741,1757132711021,2926.12231806,0.000154,2]
[383821742,1757132720591,2329.62332866,9e-05,2]
[383821743,1757132723780,-189.25368698,0.0002,2]
[383821744,1757132726479,-199.84904452,0.0002,2]
[383821745,1757132729142,-159.51543229,0.0002,2]
[383821746,1757132730814,-220.2774069,0.0002,2]
[383821747,1757132734225,-202.19861576,0.0002,2]
[383821748,1757132736399,-173.3407199,0.0002,2]
[383821749,1757132737445,4222.48984831,9e-05,2]
[383821750,1757132740521,-271.06828083,0.0002,2]
[383821751,1757132743005,-198.22985695,0.0002,2]
[383821752,1757132745071,-290.88422321,0.0002,2]
[383821753,1757132745117,-1110.46111833,0.0002,2]
[383821754,1757132747642,-265.97292326,0.0002,2]
[383821755,1757132751289,-187.71707478,0.0002,2]
[383821756,1757132753008,-372.38897289,0.0002,2]
[383821757,1757132759512,-243.67177882,0.0002,2]
[383821758,1757132763207,-256.32765018,0.0002,2]
[383821759,1757132767195,-229.09263828,0.0002,2]
[383821760,1757132769960,-230.93819822,0.0002,2]
[383821761,1757132773095,-317.73101189,0.0002,2]
[383821762,1757132775232,-165.18080583,0.0002,2]
[383821763,1757132778086,-200.37095561,0.0002,2]
[383821764,1757132779561,-151.0,0.0002,2]
[383821765,1757132781172,-267.68506596,0.0002,2]
[383821766,1757132783437,-223.9107387,0.0002,2]
[383821767,1757132785388,-231.11367656,0.0002,2]
[383821769,1757132789422,-356.55460697,0.0002,2]
[383821770,1757132789816,765.96374629,9e-05,2]
[383821771,1757132791467,-274.48460193,0.0002,2]
[383821772,1757132793155,-184.90428731,0.00019999,2]
[383821773,1757132793180,-6.32472549,0.00019999,2]
[383821774,1757132794902,-174.53181411,0.00019999,2]
[383821775,1757132798480,-75.11325284,0.00019999,2]
[383821776,1757132798504,-187.40816137,0.00019999,2]
[383821777,1757132798527,-62.94677168,0.00019999,2]
[383821778,1757132801746,-311.46818609,0.00019999,2]
[383821779,1757132805239,-125.58504223,0.00019999,2]
[383821780,1757132805267,-28.41495777,0.00019999,2]
[383821782,1757132807299,-161.92941924,0.00019999,2]
[383821783,1757132809889,-252.24155291,0.00019999,2]
[383821784,1757132811965,-195.0,0.00019999,2]
[383821785,1757132815018,-0.90350328,0.00019999,2]
[383821786,1757132815042,-315.98704362,0.00019999,2]
[383821787,1757132815068,-79.6226202,0.00019999,2]
[383821788,1757132816556,-266.32702604,0.00019999,2]
[383821789,1757132821045,-154.05035376,0.00019999,2]
[383821790,1757132821069,-27.55151873,0.00019999,2]
[383821791,1757132823266,-148.9335524,0.00019999,2]
[383821792,1757132823291,-113.09001359,0.00019999,2]
[383821793,1757132824896,-194.99900332,0.00019999,2]
[383821794,1757132827091,-62.11771883,0.00019999,2]
[383821795,1757132827114,-500.0,0.00019999,2]
[383821796,1757132827137,-500.0,0.00019999,2]
[383821797,1757132827162,-500.0,0.00019999,2]
[383821798,1757132827185,-500.0,0.00019999,2]
[383821799,1757132827212,-500.0,0.00019999,2]
[383821800,1757132827235,-500.0,0.00019999,2]
[383821801,1757132827261,-500.0,0.00019999,2]
[383821802,1757132827286,-179.1788547,0.00019999,2]
[383821803,1757132827308,-1010.56243814,0.0002,2]
[383821804,1757132827337,-517.90407499,0.0002,2]
[383821805,1757132829677,-203.25048679,0.0002,2]
[383821806,1757132832624,-263.66905152,0.0002,2]
[383821807,1757132835774,-154.0,0.0002,2]
[383821808,1757132837429,-316.68186064,0.0002,2]
[383821809,1757132840200,-196.53950787,0.0002,2]
[383821810,1757132841107,-305.54869156,0.0002,2]
[383821811,1757132842818,-259.66335185,0.0002,2]
[383821812,1757132848088,-2522.93797238,0.0002,2]
[383821813,1757132848398,-164.636229,0.0002,2]
[383821814,1757132849105,-1416.30511831,0.0002,2]
[383821815,1757132850122,-500.0,0.0002,2]
[383821816,1757132851585,-500.0,0.0002,2]
[383821817,1757132853727,-521.57638762,0.0002,2]
[383821818,1757132856145,-326.46431791,0.0002,2]
[383821819,1757132858874,-295.92568209,0.000199,2]
[383821820,1757132861114,-442.83,0.000199,2]
[383821821,1757132863427,-18.363691,0.000199,2]
[383821822,1757132863451,-191.39067459,0.0002,2]
[383821823,1757132865680,-183.00906676,0.0002,2]
[383821824,1757132868439,-250.0,0.0002,2]
[383821825,1757132870627,-470.32,0.0002,2]
[383821826,1757132873035,4352.03075115,0.00013,2]
[383821827,1757132873348,-352.52057861,0.0002,2]
[383821828,1757132875506,-209.41,0.0002,2]
[383821829,1757132878372,-160.26917084,0.0002,2]
[383821830,1757132880211,-317.14739681,0.0002,2]
[383821831,1757132882029,-164.0,0.00019999,2]
[383821832,1757132882055,-105.79418616,0.0002,2]
[383821838,1757132951147,-26445.5989,0.0002,2]
[383821839,1757132957095,-4799.313918,0.0002,2]
[383821840,1757132957121,-31251.37778,0.0002,2]
[383821841,1757132957152,-47818.99024,0.0002,2]
[383821843,1757132960084,-460.17,0.0001999,3]
[383821844,1757132960105,-260529.3042,0.0002,2]
[383821845,1757132965129,-1091.50748333,0.00019999,5]
[383821846,1757132965150,-6591.62822867,0.0002,2]
[383821848,1757133031924,-200.0,0.000199,7]
[383821849,1757133031933,-293.70862246,0.000199,2]
[383821850,1757133031943,-48.12816556,0.000199,2]
[383821851,1757133032033,-146.87183444,0.000199,2]
[383821852,1757133032043,-250.0,0.000199,2]
[383821853,1757133032052,-457.75203633,0.00019973,2]
[383821854,1757133032061,-500.0,0.00019973,2]
[383821855,1757133032074,-500.0,0.00019973,2]
[383821856,1757133032084,-1200.0,0.00019999,2]
[383821857,1757133032094,-24998.88126957,0.0002,2]
[383821858,1757133032107,-18063.39995894,0.0002,2]
[383821859,1757133032118,-30899.3896534,0.0002,2]
[383821860,1757133032141,-6932.63312067,0.0002,2]
[383821861,1757133032201,-434.79612384,0.0002,2]
[383821862,1757133032213,-498.01219548,0.0002,2]
[383821863,1757133032254,-711.17682967,0.0002,2]
[383821864,1757133032312,-710.11,0.0002,2]
[383821867,1757133032323,-2420.47800639,0.0002,2]
[383821868,1757133032334,-1804.60442984,0.0002,2]
[383821871,1757133032347,-2751.27282997,0.0002,2]
[383821893,1757133038155,-539588.58590121,0.0002,2]
[383821894,1757133038165,-214771.62867183,0.0002,2]
[383821895,1757133038174,-250.0,0.0002034,2]
[383821896,1757133038183,-1680.0,0.00021881,2]
[383821897,1757133038192,-195.0,0.0002189,2]
[383821898,1757133038201,-250.0,0.0002189,2]
[383821899,1757133038210,-1650.96052662,0.00021899,2]
[383821900,1757133038219,-195.0,0.00021999,2]
[383821901,1757133038228,-330.34524915,0.000239,2]
[383821902,1757133038237,-320.0,0.00023941,2]
[383821903,1757133038246,-5000.0,0.00024,5]
[383821904,1757133038255,-521.57638762,0.0002488,7]
[383821905,1757133038264,-283.05435645,0.000263,2]
[383821906,1757133038273,-22178.0416328,0.000264,2]
[383821907,1757133038282,-800.0,0.0003,2]
[383821908,1757133038291,-1650.9605266,0.00030078,2]
[383821909,1757133038300,-2738.0,0.00030137,120]
[383821910,1757133038309,-283.05435639,0.00031144,2]
[383821911,1757133038319,-399.999999,0.0003121,2]
[383821912,1757133038328,-150.0,0.000315,2]
[383821913,1757133038338,-14810.36,0.00031626,2]
[383821914,1757133038348,-4304.44,0.00032064,7]
[383821915,1757133038361,-500.0,0.00033172,7]
[383821916,1757133038371,-330.34524909,0.00034018,2]
[383821918,1757133038380,-6301.87,0.00034737,2]
[383821919,1757133038389,-168.91930302,0.0003489,14]
[383821920,1757133038398,-10074.65439338,0.00035,120]
[383821921,1757133038408,-3011.38049103,0.00035,120]
[383821922,1757133038417,-1065.83768891,0.00035615,2]
[383821923,1757133038426,-164.636229,0.00035616,10]
[383821924,1757133038436,-186.81079677,0.00035664,2]
[383821925,1757133038446,-283.05435639,0.00035989,2]
[383821927,1757133038456,-500.0,0.00036519,7]